Workbook

Sheet ポジションサイズの計算
B1: EUR/CAD 2013年８月～１２月
B4: エントリー前 | G4: 決済後 | L4: 損益pips | O4: 損切り幅の計算
B5: A | C5: B | D5: C | E5: D | F5: E | G5: F | H5: G | I5: H | J5: I | K5: J | L5: K | M5: L | N5: M | O5: 1 | P5: 2 | Q5: 3 | S5: エントリー | U5: 決済
A6: No | B6: 資金 | C6: ロスカット | D6: 損切り幅 | E6: レート | F6: ﾎﾟｼﾞｼｮﾝｻｲｽﾞ | G6: 獲得pips | H6: ロット | J6: レート | K6: 損益 | L6: エントリー | M6: 決済 | N6: 損益 | O6: STOP | P6: エントリー | Q6: 損切り幅 | R6: 売買 | S6: 日付 | T6: 時間 | U6: 日付 | V6: 時間
A8: 1 | B8: 500000 | C8: 0.03 | D8: 23 | E8: 96 | F8: =SUM(B8*C8/D8/E8) -> 6.793478261 | G8: 138 | H8: 6.7 | I8: 100 | J8: 0.96 | K8: =SUM(G8*H8*I8*J8) -> 88761.6 | L8: 1.3673 | M8: 1.3811 | N8: =SUM(M8-L8) -> 0.0138 | O8: 1.365 | P8: 1.3673 | Q8: =SUM(P8-O8)*10000 -> 23 | R8: 買 | S8: 2015-08-02 | T8: 05:00:00 | U8: 2015-08-05 | V8: 09:00:00
A9: 2 | B9: =SUM(B8+K8) -> 588761.6 | C9: 0.03 | D9: 17 | E9: 96 | F9: =SUM(B9*C9/D9/E9) -> 10.82282353 | G9: 100 | H9: 10.8 | I9: 100 | J9: 0.96 | K9: =SUM(G9*H9*I9*J9) -> 103680 | L9: 1.38 | M9: 1.39 | N9: =SUM(M9-L9) -> 0.01 | O9: 1.3783 | P9: 1.38 | Q9: =SUM(P9-O9)*10000 -> 17 | R9: 買 | S9: 2015-08-06 | T9: 20:00:00 | U9: 2015-08-08 | V9: 04:00:00
A10: 3 | B10: 692441.6 | C10: 0.03 | D10: 31 | E10: 96 | F10: 6.980258065 | G10: 99 | H10: 7 | I10: 100 | J10: 0.96 | K10: 66528 | L10: 1.3872 | M10: 1.3773 | N10: =SUM(L10-M10) -> 0.0099 | O10: 1.3903 | P10: 1.3872 | Q10: =SUM(O10-P10)*10000 -> 31 | R10: 売 | S10: 2015-08-08 | T10: 18:00:00 | U10: 2015-08-09 | V10: 15:00:00
A11: 4 | B11: 758969.6 | C11: 0.03 | D11: 17 | E11: 96 | F11: 13.95164706 | G11: 166 | H11: 14 | I11: 100 | J11: 0.96 | K11: 223104 | L11: 1.38 | M11: 1.3966 | N11: =SUM(M11-L11) -> 0.0166 | O11: 1.3783 | P11: 1.38 | Q11: =SUM(P11-O11)*10000 -> 17 | R11: 買 | S11: 2015-08-20 | T11: 03:00:00 | U11: 2015-08-22 | V11: 13:00:00
A12: 5 | B12: 982073.6 | C12: 0.03 | D12: 38 | E12: 96 | F12: 8.076263158 | G12: 43 | H12: 8 | I12: 100 | J12: 0.96 | K12: 33024 | L12: 1.4029 | M12: 1.4072 | N12: =SUM(M12-L12) -> 0.0043 | O12: 1.3991 | P12: 1.4029 | Q12: =SUM(P12-O12)*10000 -> 38 | R12: 買 | S12: 2015-08-22 | T12: 18:00:00 | U12: 2015-08-23 | V12: 20:00:00
A13: 6 | B13: 1015097.6 | C13: 0.03 | D13: 23 | E13: 96 | F13: 13.79208696 | G13: 159 | H13: 13.7 | I13: 100 | J13: 0.96 | K13: 209116.8 | L13: 1.3771 | M13: 1.393 | N13: =SUM(M13-L13) -> 0.0159 | O13: 1.3748 | P13: 1.3771 | Q13: =SUM(P13-O13)*10000 -> 23 | R13: 買 | S13: 2015-09-18 | T13: 18:00:00 | U13: 2015-09-20 | V13: 14:00:00
A14: 7 | B14: 1224214.4 | C14: 0.03 | D14: 12 | E14: 96 | F14: 31.88058333 | G14: 24 | H14: 31.8 | I14: 100 | J14: 0.96 | K14: 73267.2 | L14: 1.3906 | M14: 1.3882 | N14: =SUM(L14-M14) -> 0.0024 | O14: 1.3918 | P14: 1.3906 | Q14: =SUM(O14-P14)*10000 -> 12 | R14: 売 | S14: 2015-09-23 | T14: 16:00:00 | U14: 2015-09-24 | V14: 09:00:00
A15: 8 | B15: 1297481.6 | C15: 0.03 | D15: 14 | E15: 96 | F15: =SUM(B15*C15/D15/E15) -> 28.96164286 | G15: 56 | H15: 29 | I15: 100 | J15: 0.96 | K15: =SUM(G15*H15*I15*J15) -> 155904 | L15: 1.3934 | M15: 1.399 | N15: =SUM(M15-L15) -> 0.0056 | O15: 1.392 | P15: 1.3934 | Q15: =SUM(P15-O15)*10000 -> 14 | R15: 買 | S15: 2015-09-30 | T15: 22:00:00 | U15: 2015-10-01 | V15: 10:00:00
A16: 9 | B16: =SUM(B15+K15) -> 1453385.6 | C16: 0.03 | D16: 18 | E16: 96 | F16: =SUM(B16*C16/D16/E16) -> 25.23238889 | G16: 98 | H16: 25.2 | I16: 100 | J16: 0.96 | K16: =SUM(G16*H16*I16*J16) -> 237081.6 | L16: 1.4065 | M16: 1.3967 | N16: =SUM(L16-M16) -> 0.0098 | O16: 1.4083 | P16: 1.4065 | Q16: =SUM(O16-P16)*10000 -> 18 | R16: 売 | S16: 2015-10-04 | T16: 10:00:00 | U16: 2015-10-04 | V16: 19:00:00
A17: 10 | B17: 1690467.2 | C17: 0.03 | D17: 22 | E17: 96 | F17: 24.01231818 | G17: 226 | H17: 24 | I17: 100 | J17: 0.96 | K17: 520704 | L17: 1.421 | M17: 1.4436 | N17: =SUM(M17-L17) -> 0.0226 | O17: 1.4188 | P17: 1.421 | Q17: =SUM(P17-O17)*10000 -> 22 | R17: 買 | S17: 2015-10-23 | T17: 16:00:00 | U17: 2015-10-25 | V17: 12:00:00
A18: 11 | B18: 2211171.2 | C18: 0.03 | D18: 18 | E18: 96 | F18: 38.38838889 | G18: 255 | H18: 38.3 | I18: 100 | J18: 0.96 | K18: 937584 | L18: 1.4337 | M18: 1.4082 | N18: =SUM(L18-M18) -> 0.0255 | O18: 1.4355 | P18: 1.4337 | Q18: 18 | R18: 売 | S18: 2015-10-31 | T18: 11:00:00 | U18: 2015-11-01 | V18: 11:00:00
A19: 12 | B19: 3148755.2 | C19: 0.03 | D19: 15 | E19: 96 | F19: 65.59906667 | G19: 142 | H19: 85.5 | I19: 100 | J19: 0.96 | K19: 1165536 | L19: 1.4055 | M19: 1.3913 | N19: =SUM(L19-M19) -> 0.0142 | O19: 1.407 | P19: 1.4055 | Q19: 15 | R19: 売 | S19: 2015-11-07 | T19: 14:00:00 | U19: 2015-11-07 | V19: 15:00:00
A20: 13 | B20: 4314291.2 | C20: 0.03 | D20: 14 | E20: 96 | F20: 96.30114286 | G20: 112 | H20: 96.3 | I20: 100 | J20: 0.96 | K20: 1035417.6 | L20: 1.4026 | M20: 1.4138 | N20: =SUM(M20-L20) -> 0.0112 | O20: 1.404 | P20: 1.4026 | Q20: =SUM(O20-P20)*10000 -> 14 | R20: 買 | S20: 2015-11-11 | T20: 12:00:00 | U20: 2015-11-14 | V20: 16:00:00
A21: 14 | B21: 5349708.8 | C21: 0.03 | D21: 20 | E21: 96 | F21: 83.5892 | G21: 53 | H21: 83.5 | I21: 100 | J21: 0.96 | K21: 424848 | L21: 1.4103 | M21: 1.4156 | N21: =SUM(M21-L21) -> 0.0053 | O21: 1.4083 | P21: 1.4103 | Q21: =SUM(P21-O21)*10000 -> 20 | R21: 買 | S21: 2015-11-19 | T21: 16:00:00 | U21: 2015-11-20 | V21: 10:00:00
A22: 15 | B22: 5774556.8 | C22: 0.03 | D22: 29 | E22: 96 | F22: =SUM(B22*C22/D22/E22) -> 62.22582759 | G22: 83 | H22: 62.2 | I22: 100 | J22: 0.96 | K22: =SUM(G22*H22*I22*J22) -> 495609.6 | L22: 1.4135 | M22: 1.4052 | N22: =SUM(L22-M22) -> 0.0083 | O22: 1.4164 | P22: 1.4135 | Q22: =SUM(O22-P22)*10000 -> 29 | R22: 売 | S22: 2015-11-20 | T22: 16:00:00 | U22: 2015-11-21 | V22: 07:00:00
A23: 16 | B23: =SUM(B22+K22) -> 6270166.4 | C23: 0.03 | D23: 46 | E23: 96 | F23: =SUM(B23*C23/D23/E23) -> 42.59623913 | G23: 188 | H23: 42.5 | I23: 100 | J23: 0.96 | K23: =SUM(G23*H23*I23*J23) -> 767040 | L23: 1.4098 | M23: 1.4286 | N23: =SUM(M23-L23) -> 0.0188 | O23: 1.4052 | P23: 1.4098 | Q23: =SUM(P23-O23)*10000 -> 46 | R23: 買 | S23: 2015-11-21 | T23: 14:00:00 | U23: 2015-11-25 | V23: 10:00:00
A24: 17 | B24: 7037206.4 | C24: 0.03 | D24: 25 | E24: 96 | F24: 87.96508 | G24: 102 | H24: 88 | I24: 100 | J24: 0.96 | K24: 861696 | L24: 1.4273 | M24: 1.4375 | N24: =SUM(M24-L24) -> 0.0102 | O24: 1.4248 | P24: 1.4273 | Q24: =SUM(P24-O24)*10000 -> 25 | R24: 買 | S24: 2015-11-26 | T24: 16:00:00 | U24: 2015-11-28 | V24: 02:00:00
A25: 18 | B25: 7898902.4 | C25: 0.03 | D25: 27 | E25: 96 | F25: 91.42248148 | G25: 60 | H25: 91.4 | I25: 100 | J25: 0.96 | K25: 526464 | L25: 1.4612 | M25: 1.4672 | N25: =SUM(M25-L25) -> 0.006 | O25: 1.4585 | P25: 1.4612 | Q25: =SUM(P25-O25)*10000 -> 27 | R25: 買 | S25: 2015-12-18 | T25: 12:00:00 | U25: 2015-12-18 | V25: 17:00:00
A26: 19 | B26: 8425366.4 | C26: 0.03 | D26: 23 | E26: 96 | F26: 114.475087 | G26: 181 | H26: 114.4 | I26: 100 | J26: 0.96 | K26: =SUM(G26*H26*I26*J26) -> 1987814.4 | L26: 1.458 | M26: 1.4761 | N26: =SUM(M26-L26) -> 0.0181 | O26: 1.4557 | P26: 1.458 | Q26: =SUM(P26-O26)*10000 -> 23 | R26: 買 | S26: 2015-12-26 | T26: 19:00:00 | U26: 2015-12-27 | V26: 14:00:00
A27: 20 | B27: 10413180.8 | C27: 0.03 | D27: 20 | E27: 96 | F27: =SUM(B27*C27/D27/E27) -> 162.70595 | G27: 188 | H27: 162.7 | I27: 100 | J27: 0.96 | K27: 2936409.6 | L27: 1.4688 | M27: 1.45 | N27: =SUM(L27-M27) -> 0.0188 | O27: 1.4708 | P27: 1.4688 | Q27: =SUM(O27-P27)*10000 -> 20 | R27: 売 | S27: 2015-12-31 | T27: 05:00:00 | U27: 2015-01-02 | V27: 15:00:00
G28: =SUM(G8:G27) -> 2473 | K28: =SUM(K8:K27) -> 12849590.4

Sheet 気づき
A3: 2013年は、エントリー回数が７回と少なかった。
A5: レンジが多かったのか、MAの１０と２０の絡まりが綺麗ではなかった。

Sheet 画像
